bitfinex/quotes_ETHUSD_20240618
["timestamp","ask_amount","ask_price","bid_price","bid_amount"]
[1718688024611,2.10245897,3457.1,3456.2,0.03219616]
[1718688024924,3.0,3457.5,3456.2,2.98338852]
[1718688025142,2.14148232,3457.4,3456.2,2.98338852]
[1718688025419,2.10238224,3457.3,3456.2,2.98338852]
[1718688025576,0.03910008,3457.2,3456.3,0.83456085]
[1718688025782,0.03910008,3457.2,3456.4,0.03223333]
[1718688026177,0.03910008,3457.5,3456.4,0.03223333]
[1718688026379,2.10237958,3457.4,3456.5,2.3637]
[1718688026629,2.10237958,3457.4,3456.6,0.41937111]
[1718688026795,5.053,3458.5,3456.7,2.89292]
[1718688027109,3.03910008,3457.7,3456.9,2.3637]
[1718688027618,0.03910008,3457.7,3457.0,0.03264908]
[1718688027833,3.0,3458.0,3457.0,0.03264908]
[1718688027834,0.03910008,3457.9,3457.0,0.03264908]
[1718688028035,2.10212794,3457.8,3457.0,0.03264908]
[1718688028195,0.03910008,3457.7,3457.0,0.03264908]
[1718688028835,0.03910008,3458.3,3457.0,0.03264908]
[1718688029038,2.10212261,3458.2,3457.0,0.03264908]
[1718688029336,0.03910008,3458.1,3457.0,0.03264908]
[1718688029511,2.61624488,3458.0,3457.0,0.03264908]
[1718688029713,5.14122269,3457.9,3457.0,0.03264908]
[1718688029915,2.10212261,3457.8,3457.0,0.03264908]
[1718688030113,0.03910008,3457.7,3457.0,0.03264908]
[1718688030942,0.03910008,3458.3,3457.0,0.03264908]
[1718688031243,2.10213228,3458.2,3456.9,2.3637]
[1718688031430,0.03910008,3458.1,3456.9,2.3637]
[1718688031632,2.10213228,3458.0,3457.0,0.06984863]
[1718688031838,0.03910008,3457.9,3457.0,0.06984863]
[1718688032820,2.4285,3457.9,3457.0,0.06984863]
[1718688033062,1.64195008,3457.8,3457.0,0.06984863]
[1718688033334,0.03910008,3457.7,3456.4,2.4624]
[1718688034152,0.03910008,3457.7,3456.5,0.06988463]
[1718688034324,0.03910008,3457.7,3456.5,0.12774256]
[1718688037449,0.03910008,3457.7,3456.6,2.2706]
[1718688037770,0.03910008,3457.7,3456.6,2.79975726]
[1718688037982,0.03910008,3457.7,3456.7,0.06993039]
[1718688039742,3.0,3457.6,3456.7,0.06993039]
[1718688039949,3.0,3457.6,3455.7,2.89374]
[1718688039950,6.047,3457.2,3455.7,2.2706]
[1718688040161,2.2988,3457.0,3455.7,2.2706]
[1718688040359,0.03910008,3456.9,3455.8,0.07001813]
[1718688040685,0.03910008,3456.9,3455.7,2.2706]
[1718688041050,0.03910008,3456.9,3455.8,0.07021513]
[1718688041245,0.91742185,3456.8,3455.8,0.07021513]
[1718688041549,0.03910008,3456.7,3455.7,2.2706]
[1718688041951,0.03910008,3456.7,3455.8,0.07021513]
[1718688044376,0.58910008,3457.0,3455.8,0.07021513]
[1718688044788,3.63610008,3457.0,3455.7,2.2706]
[1718688044989,7.01061001,3456.9,3455.7,2.2706]
[1718688045186,0.58910008,3456.8,3455.8,0.07021513]
[1718688045396,0.03910008,3456.7,3455.8,0.07021513]
[1718688045714,0.03910008,3456.7,3455.7,2.2706]
[1718688045862,0.37801995,3456.6,3455.7,2.2706]
[1718688046065,0.03910008,3456.5,3455.8,0.07021513]
[1718688046494,0.03910008,3456.5,3455.7,2.2706]
[1718688046772,0.03910008,3456.5,3455.9,0.07020578]
[1718688046999,0.03910008,3456.5,3455.8,0.07021513]
[1718688047164,0.03910008,3456.5,3455.7,2.2706]
[1718688047611,0.03910008,3456.5,3455.8,0.07021513]
[1718688047897,0.03910008,3456.5,3455.7,2.2706]
[1718688048097,0.03910008,3456.5,3455.9,0.07020578]
[1718688048276,0.03910008,3456.5,3455.7,2.2706]
[1718688048905,0.03910008,3456.5,3455.8,0.07021513]
[1718688049396,0.03910008,3456.9,3455.8,0.07021513]
[1718688052468,0.03910008,3456.9,3455.7,2.2706]
[1718688053184,0.03910008,3456.9,3455.8,0.07021513]
[1718688053701,0.03910008,3456.9,3455.7,2.2706]
[1718688054099,0.03910008,3456.9,3455.8,0.07021513]
[1718688054293,0.03910008,3456.9,3455.7,2.2706]
[1718688054595,0.92941092,3456.8,3455.9,0.07020578]
[1718688054765,0.92941092,3456.8,3455.8,0.07021513]
[1718688054766,0.03910008,3456.7,3455.8,0.07021513]
[1718688054970,0.03910008,3456.7,3455.7,2.2706]
[1718688055171,0.03910008,3456.7,3455.9,0.07020578]
[1718688055404,0.03910008,3456.7,3455.8,0.07021513]
[1718688055704,0.43595118,3456.7,3455.9,0.07039208]
[1718688056202,0.43595118,3456.7,3455.7,2.2706]
[1718688056396,0.43595118,3456.7,3456.0,0.07038273]
[1718688056613,0.43595118,3456.7,3455.7,2.2706]
[1718688056975,0.43595118,3456.7,3455.8,0.07040143]
[1718688058035,0.03910008,3456.7,3455.8,0.36237225]
[1718688058346,0.03910008,3456.9,3455.9,2.3157]
[1718688058513,0.03910008,3456.9,3456.0,2.37356363]
[1718688058696,0.03910008,3456.9,3456.0,2.44394636]
[1718688060233,0.50067987,3457.1,3456.0,2.44394636]
[1718688060444,0.03910008,3457.0,3456.0,2.44394636]
[1718688060727,0.03910008,3457.0,3456.2,2.4637]
[1718688061111,0.03910008,3457.0,3456.3,0.07060897]
[1718688062053,0.58910008,3457.0,3456.2,2.4637]
[1718688062618,0.58910008,3457.0,3455.3,2.2847]
[1718688062820,3.0,3456.9,3455.3,2.2847]
[1718688063127,6.047,3456.5,3455.4,0.07065734]
[1718688063337,0.58910008,3456.4,3455.4,0.07065734]
[1718688063515,3.58910008,3456.4,3455.3,2.2847]
[1718688064920,3.58910008,3456.4,3455.4,0.07072182]
[1718688065345,3.58910008,3456.4,3455.3,2.2847]
[1718688065547,0.32795197,3456.3,3455.3,2.2847]
[1718688065761,0.03910008,3456.2,3455.4,0.07091535]
[1718688066122,0.03910008,3456.2,3455.3,2.2847]
[1718688066860,0.03910008,3456.2,3455.4,0.07091535]
[1718688067067,0.03910008,3456.2,3455.3,2.2847]
[1718688067264,0.3917052,3456.1,3454.6,2.4747]
[1718688067448,0.03910008,3456.0,3454.6,2.4747]
[1718688067636,0.03910008,3456.0,3454.7,0.07098086]
[1718688070020,2.25,3455.9,3454.7,0.07098086]
[1718688070238,0.03910008,3455.8,3454.7,0.07098086]
[1718688070558,0.52891001,3455.7,3454.7,0.07098086]
[1718688070757,0.03910008,3455.6,3454.7,0.07098086]
[1718688071123,0.03910008,3455.6,3454.6,2.4747]
[1718688071560,0.03910008,3455.6,3454.7,0.07133923]
[1718688071929,0.03910008,3455.6,3454.6,2.4747]
[1718688072128,0.35680101,3455.5,3454.6,2.4747]
[1718688072330,0.03910008,3455.4,3454.7,0.07133923]
[1718688076629,0.03910008,3455.4,3454.8,0.07159517]
[1718688076846,0.03910008,3455.4,3454.6,2.4747]
[1718688077047,0.03910008,3455.4,3454.7,0.07160453]
[1718688077247,0.49501902,3455.4,3454.7,0.07160453]
[1718688079647,0.49501902,3455.4,3454.2,2.3761]
[1718688079854,0.49501902,3455.4,3454.3,0.07164198]
[1718688080799,0.03910008,3455.4,3454.3,0.12953348]
[1718688081175,0.03910008,3455.4,3454.3,0.07164198]
[1718688081779,3.0,3455.6,3454.4,2.95272971]
[1718688081780,0.03910008,3455.5,3454.4,2.95272971]
[1718688082091,0.03910008,3455.5,3454.5,0.07185272]
[1718688082652,0.03910008,3455.5,3454.7,2.4726]
[1718688082877,0.03910008,3455.8,3454.8,0.33205844]
[1718688083454,0.03910008,3455.8,3454.8,0.38994364]
[1718688089319,3.50081029,3456.2,3454.8,3.28445364]
[1718688089621,0.03910008,3456.1,3454.8,3.28445364]
[1718688090113,0.03910008,3456.1,3454.8,0.38994364]
[1718688090302,0.03910008,3456.3,3455.0,2.053]
[1718688090532,2.27517231,3456.7,3455.3,2.8941]
[1718688090711,2.77586989,3456.7,3455.5,2.3465]
[1718688090882,2.27517231,3456.7,3455.7,2.89376]
[1718688091216,0.03910008,3456.6,3455.8,0.89046947]
[1718688091823,2.4634,3456.5,3455.8,0.07126499]
[1718688092024,2.14186223,3456.4,3455.8,0.07126499]
[1718688092317,2.10276215,3456.3,3455.9,0.07109437]
[1718688092517,0.03910008,3456.2,3455.9,0.07109437]
[1718688092694,0.03910008,3456.2,3455.5,2.3465]
[1718688092894,0.03910008,3456.4,3455.6,0.51107243]
[1718688093095,2.1027718,3456.3,3455.6,0.56894308]
[1718688093322,2.27517231,3456.7,3456.0,2.3818]
[1718688093620,2.1025606,3456.6,3456.1,0.05786071]
[1718688093779,2.1025606,3456.6,3456.1,0.07107566]
[1718688093978,2.14173749,3456.5,3456.1,0.07107566]
[1718688094283,2.10263741,3456.4,3455.7,0.05786689]
[1718688094484,2.27517231,3456.7,3455.8,0.63521036]
[1718688094683,2.10264904,3456.6,3455.8,0.70631408]
[1718688095225,2.27517231,3456.7,3455.8,0.70631408]
[1718688095540,2.27517231,3456.7,3456.4,2.89317]
[1718688095719,7.93069758,3457.6,3456.4,2.89317]
[1718688095882,2.4095,3457.7,3456.5,1.09446726]
[1718688095883,2.14139167,3457.5,3456.5,1.09446726]
[1718688096082,2.10229159,3457.4,3456.5,1.09446726]
[1718688096304,0.03910008,3457.3,3456.5,0.07103826]
[1718688096507,2.10229159,3457.2,3456.5,0.07103826]
[1718688096715,2.10229159,3457.2,3456.2,5.28812]
[1718688096923,2.10229159,3457.1,3456.6,0.07102891]
[1718688097130,2.10229159,3457.0,3456.2,5.28812]
[1718688097428,2.4095,3457.7,3456.7,0.07101956]
[1718688097605,2.1414128,3457.6,3456.3,0.818156]
[1718688097808,2.10231272,3457.5,3456.8,0.07101021]
[1718688098009,0.03910008,3457.4,3456.3,0.818156]
[1718688098217,2.10231272,3457.3,3456.9,0.07100086]
[1718688098429,0.55324136,3457.2,3456.2,5.28812]
[1718688098594,0.03910008,3457.2,3456.2,5.28812]
[1718688098799,0.03910008,3457.4,3456.3,0.07105696]
[1718688099100,2.1023308,3457.3,3456.3,0.07105696]
[1718688099298,2.1023308,3457.3,3456.3,2.96431696]
[1718688099503,2.4095,3457.7,3456.3,2.96431696]
[1718688099504,2.1023308,3457.2,3456.3,2.96431696]
[1718688099704,3.24095,3457.6,3456.4,0.5359117]
[1718688099906,2.14139444,3457.5,3456.4,0.5359117]
[1718688100099,2.10229436,3457.4,3456.5,0.07103826]
[1718688100313,0.03910008,3457.3,3456.5,0.07103826]
[1718688100509,0.03910008,3457.3,3456.6,0.350021]
[1718688100510,2.1022999,3457.2,3456.6,0.350021]
[1718688100920,3.24095,3457.6,3456.7,0.07101956]
[1718688101122,2.14141203,3457.5,3456.7,0.07101956]
[1718688101422,2.10231195,3457.4,3456.7,0.12887233]
[1718688101599,2.10231195,3457.4,3456.7,0.05785277]
[1718688101800,0.03910008,3457.3,3456.8,0.07101021]
[1718688102047,0.03910008,3457.5,3456.8,0.07101021]
[1718688102220,2.10227725,3457.4,3456.5,0.05785274]
[1718688102400,0.03910008,3457.3,3456.9,0.07044899]
[1718688102598,3.24095,3457.6,3456.5,2.95094274]
[1718688102847,3.0,3457.6,3457.0,0.07043964]
[1718688103000,3.0,3458.0,3456.7,0.05784938]
[1718688103320,2.10211903,3457.9,3456.8,0.05784937]
[1718688103526,2.10211903,3457.9,3456.8,0.12830771]
[1718688103713,0.03910008,3457.8,3456.8,0.12830771]
[1718688104037,0.03910008,3457.8,3456.8,0.66014748]
[1718688104802,0.03910008,3457.9,3456.8,0.66014748]
[1718688105000,2.10209432,3457.8,3456.8,0.60229811]
[1718688105236,0.03910008,3457.7,3456.8,0.60229811]
[1718688106142,3.0,3458.0,3456.8,0.60229811]
[1718688106143,0.03910008,3457.9,3456.8,0.60229811]
[1718688106296,0.57950497,3457.8,3456.8,0.60229811]
[1718688106497,0.03910008,3457.7,3456.8,0.60229811]
[1718688107569,0.03910008,3457.9,3456.8,0.60229811]
[1718688108935,0.03910008,3457.9,3456.9,5.37958578]
[1718688109251,0.50047905,3458.4,3456.9,5.37958578]
[1718688109252,2.325,3458.4,3456.9,5.37958578]
[1718688109418,0.03910008,3458.3,3457.0,1.16287671]
[1718688109618,0.03910008,3458.3,3457.1,0.05784244]
[1718688109863,0.03910008,3458.3,3457.1,5.00343244]
[1718688110031,0.03910008,3458.3,3457.2,2.49908421]
[1718688110235,0.03910008,3458.3,3457.3,0.0578403]
[1718688110542,0.03910008,3458.5,3457.4,0.0699939]
[1718688111867,0.03910008,3458.5,3457.5,0.05783964]
[1718688112050,0.03910008,3458.5,3457.5,2.48023964]
[1718688112363,0.03910008,3458.5,3457.6,0.06953119]
[1718688112562,0.03910008,3458.5,3457.6,0.12736879]
[1718688112961,0.03910008,3458.5,3457.6,0.67158767]
[1718688114762,0.03910008,3458.8,3457.6,0.67158767]
[1718688117361,0.03910008,3458.8,3457.6,0.61375007]
[1718688119223,0.03910008,3458.8,3457.6,0.06953119]
[1718688119781,0.03910008,3458.8,3457.6,0.12736798]
[1718688120608,0.03910008,3458.8,3457.6,0.06953119]
[1718688120878,5.3145,3458.7,3457.2,2.3321]
[1718688121114,3.03910008,3458.6,3457.2,2.3321]
[1718688121314,3.03910008,3458.6,3457.3,0.0671453]
[1718688123120,3.03910008,3458.6,3457.3,0.1249882]
[1718688123331,0.03910008,3458.6,3457.3,0.1249882]
[1718688123489,0.58910008,3458.6,3457.3,0.1249882]
[1718688123685,0.64066001,3458.5,3457.3,0.1249882]
[1718688123891,0.03910008,3458.4,3457.4,2.4739]
[1718688124212,0.03910008,3458.4,3457.5,0.12494443]
[1718688124625,0.03910008,3458.8,3457.5,0.12494443]
[1718688125125,0.03910008,3458.8,3457.7,2.4739]
[1718688125294,0.03910008,3458.8,3457.9,2.4739]
[1718688125492,2.14859974,3459.3,3458.0,0.06705839]
[1718688125493,0.03910008,3459.1,3458.0,0.06705839]
[1718688127207,0.03910008,3459.1,3458.1,2.4578]
[1718688127410,0.03910008,3459.1,3458.2,0.05782652]
[1718688127630,0.03910008,3459.1,3458.3,2.4578]
[1718688127926,0.03910008,3459.1,3458.4,0.06702102]
[1718688128860,3.0,3459.2,3458.5,0.05782613]
[1718688129068,2.14859974,3459.3,3458.6,2.3045]
[1718688129223,2.14859974,3459.3,3458.6,2.37150235]
[1718688130624,2.14859974,3459.3,3458.7,0.05782218]
[1718688131064,2.14859974,3459.3,3458.8,0.06698367]
[1718688131364,2.14859974,3459.3,3458.8,0.24293059]
[1718688131529,2.14859974,3459.3,3458.9,0.06697433]
[1718688132657,3.50028552,3459.8,3458.9,0.06697433]
[1718688132957,2.14013652,3459.7,3458.8,0.24293059]
[1718688133121,0.03910008,3459.7,3458.8,0.24293059]
[1718688133332,0.03910008,3459.7,3458.9,0.06697433]
[1718688133530,0.03910008,3459.7,3458.8,0.24293059]
[1718688133738,2.10106714,3459.6,3458.9,0.32749961]
[1718688134067,0.03910008,3459.5,3458.9,0.32749961]
[1718688134226,0.03910008,3459.9,3458.9,0.26052528]
[1718688134431,2.10104845,3459.8,3458.9,0.26052528]
[1718688134630,0.03910008,3459.7,3458.9,0.26052528]
[1718688134868,2.10104845,3459.6,3458.9,0.26052528]
[1718688135034,0.03910008,3459.5,3458.9,0.26052528]
[1718688135454,3.0,3460.0,3458.9,0.26052528]
[1718688135455,0.03910008,3459.9,3458.9,0.26052528]
[1718688136060,5.13910008,3459.9,3458.6,2.3045]
[1718688136271,2.4339,3459.7,3458.6,2.3045]
[1718688136482,0.58910008,3459.6,3457.9,2.2828]
[1718688136777,3.58910008,3459.6,3458.0,2.34897096]
[1718688136966,3.58910008,3459.6,3458.1,0.8240891]
[1718688137463,3.58910008,3459.6,3458.2,0.06615228]
[1718688137962,3.047,3459.8,3458.2,0.06615228]
[1718688138940,3.047,3459.8,3458.3,2.3962]
[1718688139136,3.047,3459.8,3458.4,0.0662445]
[1718688139474,0.30233549,3460.0,3458.5,2.40162609]
[1718688139853,3.30233549,3460.0,3458.6,0.0662294]
[1718688140172,3.30233549,3460.0,3458.7,2.3703187]
[1718688140336,3.30233549,3460.0,3458.7,2.3125]
[1718688140533,3.30233549,3460.0,3458.8,0.06621072]
[1718688141860,6.047,3459.8,3458.8,0.06621072]
[1718688142061,3.0,3459.7,3458.8,0.06621072]
[1718688142385,3.0,3459.7,3458.6,2.3528]
[1718688142757,3.0,3459.7,3458.7,0.063877]
[1718688146081,0.30233549,3460.0,3458.9,2.89105]
[1718688146279,2.14908418,3460.3,3459.2,2.89083]
[1718688146280,1.85368942,3460.3,3459.2,2.89083]
[1718688146477,1.85368942,3460.3,3459.3,2.30900205]
[1718688146678,1.85368942,3460.3,3459.4,2.2512]
[1718688146898,1.85368942,3460.3,3459.5,2.30900205]
[1718688147201,1.85368942,3460.3,3459.6,2.7775473]
[1718688147605,1.85368942,3460.3,3459.7,0.1215857]
[1718688148515,1.85368942,3460.3,3459.7,0.05780206]
[1718688148925,1.85368942,3460.3,3459.6,2.2512]
[1718688149285,1.85368942,3460.3,3459.7,0.06378364]
[1718688153221,3.50012084,3460.8,3459.7,0.06378364]
[1718688153515,3.0,3460.8,3459.6,2.2512]
[1718688154016,3.0,3460.8,3459.7,2.38890207]
[1718688154604,3.0,3460.8,3459.8,0.06349944]
[1718688155003,3.0,3460.8,3459.8,0.05780057]
[1718688155204,3.0,3460.8,3459.9,2.3311]
[1718688158609,3.0,3461.1,3459.9,2.3311]
[1718688158804,3.0,3461.2,3460.0,0.06309882]
[1718688159125,3.0,3461.2,3459.9,2.3311]
[1718688161301,3.0,3461.2,3460.1,2.3832]
[1718688161507,0.84934,3461.1,3460.1,2.3832]
[1718688161743,0.84934,3461.1,3460.2,0.06298024]
[1718688162235,0.84934,3461.1,3460.1,2.3832]
[1718688162736,0.84934,3461.1,3460.2,0.06300879]
[1718688162937,0.84934,3461.1,3460.1,2.3832]
[1718688163138,0.84934,3461.1,3460.2,0.06300879]
[1718688163348,0.84934,3461.1,3460.1,2.3832]
[1718688163555,0.84934,3461.1,3460.2,0.0627233]
[1718688163754,0.84934,3461.1,3460.1,2.62152]
[1718688163956,0.84934,3461.1,3460.2,0.06238997]
[1718688164152,0.84934,3461.1,3460.1,2.62152]
[1718688164364,0.84934,3461.1,3460.2,0.06238997]
[1718688164722,0.84934,3461.1,3460.1,2.62152]
[1718688164922,3.0,3461.2,3460.2,0.262152]
[1718688166960,3.0,3461.2,3460.3,2.4954]
[1718688169449,3.853,3461.2,3460.3,3.3484]
[1718688169770,3.853,3461.2,3460.3,2.4954]
[1718688169973,3.853,3461.2,3460.3,3.3484]
[1718688170135,3.71472307,3461.2,3460.3,3.3484]
[1718688172763,4.56772307,3461.2,3460.3,3.3484]
[1718688174996,3.71472307,3461.2,3460.3,3.3484]
[1718688175183,4.56772307,3461.2,3460.3,3.3484]
[1718688176403,0.5000721,3461.1,3460.3,3.3484]
[1718688176693,1.12697899,3461.1,3460.3,3.3484]
[1718688177600,0.62690689,3461.1,3460.3,3.3484]
[1718688178186,0.853,3460.7,3460.3,2.4954]
[1718688178798,0.853,3460.7,3460.4,0.06019409]
[1718688179003,0.853,3460.5,3460.4,0.06019409]
[1718688179205,0.853,3460.5,3459.9,2.4444]
[1718688179549,0.853,3460.3,3459.9,2.4444]
[1718688180842,2.10061596,3460.2,3459.9,2.4444]
[1718688181748,0.853,3460.1,3459.1,2.3426]
[1718688182041,2.10061596,3460.0,3459.1,2.3426]
[1718688182249,5.10061596,3460.0,3459.1,2.3426]
[1718688182412,2.10061596,3459.9,3459.1,2.3426]
[1718688183853,2.10061596,3459.9,3459.3,2.4434]
[1718688184017,2.10061596,3459.9,3459.3,2.80258927]
[1718688185449,2.10061596,3459.8,3459.5,2.3536]
[1718688185655,2.10061596,3459.7,3459.5,2.3536]
[1718688186024,2.10061596,3460.0,3459.5,2.3536]
[1718688186224,2.10061596,3459.9,3459.5,2.3536]
[1718688186452,2.10061596,3459.8,3459.5,2.3536]
[1718688186613,2.10061596,3459.7,3459.5,2.3536]
[1718688186818,2.10061596,3459.6,3459.5,2.3536]
[1718688187115,2.10061596,3459.9,3459.5,2.3536]
[1718688187330,2.10061596,3459.8,3459.5,2.3536]
[1718688187533,2.10061596,3459.7,3459.5,2.3536]
[1718688187753,2.10061596,3459.6,3459.5,2.3536]
[1718688188241,2.10061596,3459.9,3459.5,2.3536]
[1718688189350,2.10061596,3459.8,3459.5,2.3536]
[1718688189670,2.10061596,3459.7,3459.5,2.3536]
[1718688189872,2.10061596,3459.6,3459.5,2.3536]
[1718688190625,2.10061596,3459.9,3459.5,2.3536]
[1718688190880,2.10061596,3459.8,3459.5,2.3536]
[1718688191031,2.10061596,3459.7,3459.6,3.2293]
[1718688191669,0.50016802,3460.6,3459.7,2.3763]
[1718688191881,0.853,3460.8,3460.0,2.3763]
[1718688192233,0.853,3460.8,3460.0,2.69923]
[1718688192748,0.62690689,3461.1,3460.1,0.91079762]
[1718688192949,1.47990689,3461.1,3460.1,0.91079762]
[1718688193150,1.47990689,3461.1,3460.2,2.3041]
[1718688193350,0.853,3460.9,3460.2,2.3041]
[1718688194165,0.62690689,3461.1,3460.2,2.3041]
[1718688194467,0.853,3461.0,3460.2,2.3041]
[1718688195767,2.10028159,3460.9,3460.2,2.3041]
[1718688195937,2.10028159,3460.8,3460.2,2.3041]
[1718688196136,2.10028159,3460.7,3460.2,2.3041]
[1718688196455,2.10028159,3460.6,3460.2,2.3041]
[1718688196644,2.10028159,3460.5,3460.2,2.3041]
[1718688196845,2.10028159,3460.4,3460.2,2.3041]
[1718688197075,3.0,3460.9,3460.2,2.3041]
[1718688197286,2.100292,3460.8,3460.2,2.3041]
[1718688197466,2.100292,3460.7,3460.2,2.3041]
[1718688197666,5.100292,3460.7,3460.2,2.3041]
[1718688197870,2.100292,3460.6,3460.2,2.3041]
[1718688198375,2.100292,3460.5,3460.2,2.3041]
[1718688198765,2.100292,3460.4,3460.2,2.3041]
[1718688198969,2.100292,3460.3,3460.2,2.3041]
[1718688199286,2.100292,3460.7,3460.2,2.652103]
[1718688199458,2.100292,3460.6,3460.2,2.3041]
[1718688199659,2.100292,3460.5,3460.2,2.3041]
[1718688199858,2.100292,3460.4,3460.2,2.3041]
[1718688200070,2.100292,3460.3,3460.2,2.3041]
[1718688200468,3.0,3460.8,3460.2,2.3041]
[1718688200469,2.100292,3460.7,3460.2,2.3041]
[1718688200670,2.100292,3460.6,3460.2,2.3041]
[1718688200898,2.100292,3460.5,3460.2,2.3041]
[1718688201093,2.100292,3460.4,3460.2,2.3041]
[1718688201392,2.100292,3460.3,3460.2,2.3041]
[1718688201566,2.100292,3460.3,3459.6,2.382]
[1718688201767,2.953292,3460.3,3459.6,2.652266]
[1718688201973,2.100292,3460.2,3459.6,2.652266]
[1718688202861,2.100292,3460.1,3459.6,2.652266]
[1718688203061,2.100292,3460.0,3459.6,2.652266]
[1718688203416,2.100292,3459.9,3459.7,0.05847037]
[1718688203694,2.100292,3459.8,3459.7,0.05847037]
[1718688203890,2.100292,3460.2,3459.7,0.05847037]
[1718688204560,2.100292,3460.1,3459.7,0.05847037]
[1718688204756,2.100292,3460.0,3459.7,0.05847037]
[1718688204959,2.100292,3459.9,3459.7,0.05847037]
[1718688205172,2.100292,3459.8,3459.7,0.41484401]
[1718688205784,2.100292,3460.4,3459.7,0.41484401]
[1718688205966,2.100292,3460.4,3459.7,0.05847037]
[1718688206507,2.100292,3460.3,3459.9,2.399]
[1718688206810,2.100292,3460.2,3460.0,0.91079817]
[1718688207009,3.0,3460.5,3460.1,0.33682592]
[1718688207159,2.10025356,3460.4,3460.1,0.39462121]
[1718688207360,2.10025356,3460.4,3460.1,0.33682592]
[1718688207604,2.10025356,3460.3,3460.2,0.05842371]
[1718688207785,2.10025356,3460.5,3460.2,0.05842371]
[1718688207974,2.10025356,3460.3,3460.0,0.853]
[1718688208304,3.50016802,3460.6,3460.0,0.853]
[1718688208466,2.10023623,3460.5,3460.1,0.05843304]
[1718688209805,2.10023623,3460.4,3460.1,0.05843304]
[1718688209967,2.10023623,3460.3,3460.1,0.05843304]
[1718688210167,2.10023623,3460.2,3460.1,0.05843304]
[1718688210567,2.10023623,3460.2,3460.1,0.4472741]
[1718688210875,3.0,3460.9,3460.1,0.05843304]
[1718688211071,7.43,3461.1,3460.1,0.05843304]
[1718688211072,2.1000894,3460.8,3460.4,2.3168]
[1718688211504,2.1000894,3460.7,3460.5,0.05839572]
[1718688211662,2.1000894,3460.6,3460.5,0.05839572]
[1718688211862,2.1000894,3461.2,3460.5,0.05839572]
[1718688212065,0.853,3461.3,3460.5,0.05839572]
[1718688212066,2.1000894,3461.1,3460.5,0.05839572]
[1718688212267,2.1000894,3461.0,3460.4,2.3168]
[1718688212504,5.1000894,3461.0,3460.4,2.3168]
[1718688212726,2.1000894,3460.9,3460.4,2.3168]
[1718688212881,2.1000894,3460.8,3460.4,2.3168]
[1718688213091,2.1000894,3460.7,3460.4,2.3168]
[1718688213427,2.1000894,3460.6,3460.5,0.05839572]
[1718688213875,2.1000894,3460.9,3460.5,0.05839572]
[1718688214218,2.10009565,3460.8,3460.4,2.3168]
[1718688214419,2.10009565,3460.7,3460.4,2.63378]
[1718688214588,2.10009565,3460.6,3460.5,0.05839572]
[1718688214789,2.10009565,3460.9,3460.5,0.05839572]
[1718688215082,2.10009565,3460.8,3460.5,0.05839572]
[1718688215282,2.10009565,3460.7,3460.5,0.05839572]
[1718688215496,2.10009565,3460.6,3460.5,0.05839572]
[1718688215816,3.0,3461.0,3460.5,0.05839572]
[1718688215817,2.10008862,3460.9,3460.5,0.05839572]
[1718688216186,2.10008862,3460.9,3460.4,2.3168]
[1718688216481,2.10008862,3460.8,3460.4,2.3168]
[1718688216689,2.10008862,3460.7,3460.4,2.3168]
[1718688216881,2.10008862,3460.6,3460.5,0.28998665]
[1718688217081,2.10008862,3460.9,3460.5,0.28998665]
[1718688217281,3.0,3461.3,3460.5,1.20077575]
[1718688217282,2.10008862,3460.8,3460.5,1.20077575]
[1718688217487,2.10008862,3460.7,3460.5,1.20077575]
[1718688217686,3.0,3461.3,3460.5,1.14298665]
[1718688217885,3.50001945,3461.4,3460.6,0.05778723]
[1718688218108,2.09994309,3461.3,3460.6,0.05778723]
[1718688218311,5.09994309,3461.3,3460.7,2.348]
[1718688218514,2.09994309,3461.2,3460.7,2.348]
[1718688219076,2.95294309,3461.2,3460.7,2.348]
[1718688219298,2.09994309,3461.1,3460.7,2.348]
[1718688219497,2.09994309,3461.1,3460.8,0.05801865]
[1718688219715,3.3392,3461.0,3460.8,0.05801865]
[1718688219905,2.09994309,3460.9,3459.8,5.15163]
[1718688220227,2.09994309,3460.9,3460.0,0.853]
[1718688220439,2.09994309,3460.9,3460.1,2.57273]
[1718688220582,2.09994309,3460.9,3460.1,2.63081395]
[1718688221452,2.09994309,3460.9,3460.2,0.91079194]
[1718688221581,2.09994309,3460.9,3460.2,0.853]
[1718688221781,2.09994309,3460.8,3460.4,2.272]
[1718688221982,2.09994309,3460.7,3460.4,2.272]
[1718688222238,0.853,3461.2,3460.5,0.37635316]
[1718688222524,0.853,3461.2,3460.5,0.05804663]
[1718688222525,2.10001025,3461.1,3460.5,0.05804663]
[1718688224116,0.853,3460.8,3460.5,0.05804663]
[1718688224490,2.10001025,3460.7,3459.8,0.853]
[1718688224894,2.10001025,3460.7,3459.9,0.05810261]
[1718688225281,2.10001025,3460.7,3460.0,2.4786]
[1718688225477,2.10001025,3460.7,3460.0,3.10660326]
[1718688225718,2.10001025,3460.7,3460.1,0.05810532]
[1718688226647,2.10019296,3460.6,3460.1,0.05810532]
[1718688226797,2.10019296,3460.5,3460.1,0.05810532]
[1718688226997,0.853,3460.8,3460.1,0.05810532]
[1718688227197,2.10019277,3460.7,3460.1,0.45987618]
[1718688227595,2.10019277,3460.6,3460.1,0.45987618]
[1718688227800,2.10019277,3460.5,3460.1,0.45987618]
[1718688228013,0.853,3460.9,3460.1,0.45987618]
[1718688228331,2.10019255,3460.8,3460.1,0.45987618]
[1718688229112,2.10019255,3460.8,3460.1,0.05810532]
[1718688229313,0.853,3460.5,3460.1,0.05810532]
[1718688229521,2.10019255,3460.4,3460.1,0.05810532]
[1718688229703,2.10019255,3460.3,3459.9,0.91080154]
[1718688229898,2.10019255,3460.2,3459.9,0.91080154]
[1718688230154,0.50004633,3461.4,3460.8,2.88944]
[1718688230302,1.57280464,3461.6,3460.9,3.3321]
[1718688230508,7.43,3462.3,3460.9,3.3321]
[1718688230758,0.50004633,3462.5,3460.9,3.3321]
[1718688230759,0.853,3461.8,3460.9,3.3321]
[1718688231248,0.853,3461.8,3460.9,2.4791]
[1718688231418,0.853,3461.8,3461.0,0.622159]
[1718688233221,0.853,3461.8,3461.1,0.05800848]
[1718688233424,0.29564514,3462.3,3461.1,0.05800848]
[1718688235134,0.29564514,3462.3,3460.9,2.4791]
[1718688235954,2.046,3461.8,3460.1,2.434]
[1718688236109,0.2046,3461.7,3460.2,0.66384446]
[1718688236307,0.2046,3461.7,3460.2,0.11588258]
[1718688236924,2.4816,3461.6,3460.2,0.11588258]